[Event "Live Chess"]
[Site "Chess.com"]
[Date "2023.05.21"]
[Round "-"]
[White "Duke_of_Bebington"]
[Black "McSlash1"]
[Result "0-1"]
[WhiteElo "1555"]
[BlackElo "2008"]
[TimeControl "300"]
[EndTime "7:51:58 PDT"]
[Termination "McSlash1 won by resignation"]

1. e4 {[%clk 0:04:58.5]} 1... c5 {[%clk 0:04:59.1]} 2. Nf3 {[%clk 0:04:51.8]}
2... d6 {[%clk 0:04:58.7]} 3. d4 {[%clk 0:04:51]} 3... cxd4 {[%clk 0:04:58.6]}
4. Nxd4 {[%clk 0:04:49.6]} 4... Nf6 {[%clk 0:04:58.1]} 5. Nc3 {[%clk 0:04:48.6]}
5... g6 {[%clk 0:04:57.8]} 6. Be3 {[%clk 0:04:47.7]} 6... Bg7 {[%clk 0:04:57.2]}
7. Be2 {[%clk 0:04:46.5]} 7... O-O {[%clk 0:04:56.7]} 8. Qd2 {[%clk 0:04:45.5]}
8... Nc6 {[%clk 0:04:56.3]} 9. h4 {[%clk 0:04:43.6]} 9... h5 {[%clk 0:04:55.2]}
10. f3 {[%clk 0:04:40]} 10... Bd7 {[%clk 0:04:53.2]} 11. g4 {[%clk 0:04:38.1]}
11... hxg4 {[%clk 0:04:51.6]} 12. fxg4 {[%clk 0:04:37.4]} 12... Ne5 {[%clk
0:04:50.6]} 13. h5 {[%clk 0:04:26.1]} 13... Nfxg4 {[%clk 0:04:47]} 14. hxg6
{[%clk 0:04:22.6]} 14... Nxe3 {[%clk 0:04:44.5]} 15. Qxe3 {[%clk 0:04:21.2]}
15... fxg6 {[%clk 0:04:44.4]} 16. O-O-O {[%clk 0:04:18.1]} 16... Bg4 {[%clk
0:04:35.6]} 17. Rdg1 {[%clk 0:04:13.9]} 17... Bxe2 {[%clk 0:04:31.4]} 18. Ncxe2
{[%clk 0:04:13.8]} 18... Qc7 {[%clk 0:04:22.3]} 19. Nf4 {[%clk 0:04:11.9]} 19...
Rxf4 {[%clk 0:04:19.6]} 20. Qxf4 {[%clk 0:04:09.6]} 20... Nd3+ {[%clk
0:04:19.1]} 21. Kb1 {[%clk 0:04:07.3]} 21... Nxf4 {[%clk 0:04:19]} 0-1

[Event "Live Chess"]
[Site "Chess.com"]
[Date "2023.05.21"]
[Round "-"]
[White "SimpleHarmonic1"]
[Black "Cimon"]
[Result "1-0"]
[WhiteElo "2048"]
[BlackElo "1839"]
[TimeControl "300"]
[EndTime "7:52:13 PDT"]
[Termination "SimpleHarmonic1 won by checkmate"]

1. d4 {[%clk 0:04:58.7]} 1... Nf6 {[%clk 0:04:58.5]} 2. Nf3 {[%clk 0:04:58.2]}
2... g6 {[%clk 0:04:57.2]} 3. c4 {[%clk 0:04:57.7]} 3... Bg7 {[%clk 0:04:56.2]}
4. Nc3 {[%clk 0:04:57.3]} 4... d6 {[%clk 0:04:54.2]} 5. e4 {[%clk 0:04:54.9]}
5... O-O {[%clk 0:04:53]} 6. Be2 {[%clk 0:04:53.5]} 6... e5 {[%clk 0:04:52]} 7.
Be3 {[%clk 0:04:44.2]} 7... Nc6 {[%clk 0:04:50.4]} 8. h3 {[%clk 0:04:38.8]} 8...
Re8 {[%clk 0:04:34.4]} 9. d5 {[%clk 0:04:33.8]} 9... Ne7 {[%clk 0:04:30.3]} 10.
O-O {[%clk 0:04:33.1]} 10... Nd7 {[%clk 0:04:25.1]} 11. b4 {[%clk 0:04:26.8]}
11... a5 {[%clk 0:04:23]} 12. bxa5 {[%clk 0:04:19.4]} 12... h6 {[%clk
0:04:20.3]} 13. Nd2 {[%clk 0:04:16.3]} 13... f5 {[%clk 0:04:17.4]} 14. f3 {[%clk
0:04:14.4]} 14... f4 {[%clk 0:04:15.2]} 15. Bf2 {[%clk 0:04:13]} 15... g5 {[%clk
0:04:12]} 16. Nb3 {[%clk 0:04:10.2]} 16... h5 {[%clk 0:04:08.4]} 17. c5 {[%clk
0:04:08.4]} 17... Nf6 {[%clk 0:03:58.9]} 18. Rc1 {[%clk 0:04:04.3]} 18... g4
{[%clk 0:03:48]} 19. cxd6 {[%clk 0:04:03.1]} 19... cxd6 {[%clk 0:03:46.8]} 20.
Bb6 {[%clk 0:04:01.7]} 20... Qd7 {[%clk 0:03:35.5]} 21. Bb5 {[%clk 0:04:01.1]}
21... Nc6 {[%clk 0:03:34.3]} 22. dxc6 {[%clk 0:03:59.4]} 22... bxc6 {[%clk
0:03:30.8]} 23. Bc4+ {[%clk 0:03:48.3]} 23... Kh7 {[%clk 0:03:28]} 24. hxg4
{[%clk 0:03:37.3]} 24... hxg4 {[%clk 0:03:26.6]} 25. Kf2 {[%clk 0:03:36.5]}
25... Kg6 {[%clk 0:03:13.6]} 26. Rh1 {[%clk 0:03:21.7]} 26... Nh5 {[%clk
0:02:21.5]} 27. Rxh5 {[%clk 0:03:09.7]} 27... Kxh5 {[%clk 0:02:19.9]} 28. Qh1+
{[%clk 0:03:06.2]} 28... Kg6 {[%clk 0:02:18]} 29. Rd1 {[%clk 0:03:05.1]} 29...
Rh8 {[%clk 0:02:03.1]} 30. Qf1 {[%clk 0:03:00.8]} 30... gxf3 {[%clk 0:02:00.4]}
31. Nc5 {[%clk 0:02:51]} 31... Qg4 {[%clk 0:01:41.9]} 32. Rxd6+ {[%clk
0:02:47.7]} 32... Kg5 {[%clk 0:01:33.8]} 33. gxf3 {[%clk 0:01:40.8]} 33... Rh2+
{[%clk 0:01:05.7]} 34. Ke1 {[%clk 0:01:37.9]} 34... Qh4+ {[%clk 0:00:57]} 35.
Kd1 {[%clk 0:01:35.9]} 35... Rh1 {[%clk 0:00:55.6]} 36. Bd8+ {[%clk 0:01:30.7]}
36... Kh5 {[%clk 0:00:47.6]} 37. Bf7# {[%clk 0:01:25.5]} 1-0

[Event "Live Chess"]
[Site "Chess.com"]
[Date "2023.05.21"]
[Round "-"]
[White "Bob2pen"]
[Black "Mikhail_Golubev"]
[Result "1/2-1/2"]
[WhiteElo "1880"]
[BlackElo "2444"]
[TimeControl "300"]
[EndTime "7:52:25 PDT"]
[Termination "Game drawn by repetition"]

1. c4 {[%clk 0:04:57.5]} 1... g6 {[%clk 0:04:58.1]} 2. g3 {[%clk 0:04:56.3]}
2... Bg7 {[%clk 0:04:57.4]} 3. Bg2 {[%clk 0:04:55.6]} 3... e5 {[%clk 0:04:55.3]}
4. Nc3 {[%clk 0:04:53]} 4... Nc6 {[%clk 0:04:54.4]} 5. d3 {[%clk 0:04:51.5]}
5... d6 {[%clk 0:04:52.3]} 6. Nf3 {[%clk 0:04:50.6]} 6... f5 {[%clk 0:04:49.5]}
7. O-O {[%clk 0:04:49]} 7... h6 {[%clk 0:04:48.6]} 8. Rb1 {[%clk 0:04:47.1]}
8... a5 {[%clk 0:04:47.6]} 9. a3 {[%clk 0:04:45.9]} 9... Nf6 {[%clk 0:04:46.3]}
10. b4 {[%clk 0:04:44.7]} 10... axb4 {[%clk 0:04:44.7]} 11. axb4 {[%clk
0:04:43.7]} 11... O-O {[%clk 0:04:43.6]} 12. b5 {[%clk 0:04:42.1]} 12... Ne7
{[%clk 0:04:41.8]} 13. Bb2 {[%clk 0:04:36.3]} 13... g5 {[%clk 0:04:38.5]} 14. e4
{[%clk 0:04:34.7]} 14... f4 {[%clk 0:04:36.4]} 15. Nd5 {[%clk 0:04:30.6]} 15...
Nfxd5 {[%clk 0:04:27.9]} 16. cxd5 {[%clk 0:04:26.6]} 16... g4 {[%clk 0:04:25]}
17. Nd2 {[%clk 0:04:21.5]} 17... f3 {[%clk 0:04:23.5]} 18. Bh1 {[%clk 0:04:20]}
18... Ng6 {[%clk 0:04:10.4]} 19. Nc4 {[%clk 0:04:11.3]} 19... b6 {[%clk
0:03:49.8]} 20. d4 {[%clk 0:04:09.6]} 20... Re8 {[%clk 0:03:41.9]} 21. dxe5
{[%clk 0:04:02.7]} 21... Nxe5 {[%clk 0:03:36]} 22. Nxe5 {[%clk 0:04:00.2]} 22...
Bxe5 {[%clk 0:03:34.9]} 23. Qd2 {[%clk 0:03:35.8]} 23... Qf6 {[%clk 0:03:32.1]}
24. Rfc1 {[%clk 0:03:27.9]} 24... Ra7 {[%clk 0:03:24.1]} 25. Bxe5 {[%clk
0:03:19.3]} 25... Rxe5 {[%clk 0:03:16.8]} 26. Rc4 {[%clk 0:03:14.5]} 26... Re7
{[%clk 0:02:59.4]} 27. Rbc1 {[%clk 0:03:12.5]} 27... Bd7 {[%clk 0:02:16.8]} 28.
h4 {[%clk 0:03:09.1]} 28... Bxb5 {[%clk 0:02:11.4]} 29. R4c3 {[%clk 0:02:50.5]}
29... Be2 {[%clk 0:02:03.5]} 30. Qc2 {[%clk 0:02:34.4]} 30... Qg7 {[%clk
0:02:02.4]} 31. Kh2 {[%clk 0:02:23.4]} 31... b5 {[%clk 0:02:00.5]} 32. Rc6
{[%clk 0:02:18]} 32... Bc4 {[%clk 0:01:52.6]} 33. Qd2 {[%clk 0:02:12.6]} 33...
Ra2 {[%clk 0:01:48]} 34. Qe3 {[%clk 0:02:09.7]} 34... Bxd5 {[%clk 0:01:27.4]}
35. Rxc7 {[%clk 0:01:52.2]} 35... Rxc7 {[%clk 0:01:22.2]} 36. Rxc7 {[%clk
0:01:50.7]} 36... Qxc7 {[%clk 0:01:19.9]} 37. exd5 {[%clk 0:01:49.8]} 37... Re2
{[%clk 0:01:14.1]} 38. Qxh6 {[%clk 0:01:43.8]} 38... Rxf2+ {[%clk 0:00:43.5]}
39. Kg1 {[%clk 0:01:42.6]} 39... Qc5 {[%clk 0:00:29.6]} 40. Qe6+ {[%clk
0:01:36.5]} 40... Kf8 {[%clk 0:00:28.1]} 41. Qf6+ {[%clk 0:01:22.9]} 41... Ke8
{[%clk 0:00:27.2]} 42. Qe6+ {[%clk 0:00:55.4]} 42... Kd8 {[%clk 0:00:25.2]} 43.
Qf6+ {[%clk 0:00:54.7]} 43... Kc8 {[%clk 0:00:16.6]} 44. Qe6+ {[%clk 0:00:51.5]}
44... Kb7 {[%clk 0:00:07.5]} 45. Qd7+ {[%clk 0:00:50.4]} 45... Kb6 {[%clk
0:00:05.7]} 46. Qd8+ {[%clk 0:00:48.9]} 46... Ka6 {[%clk 0:00:04.6]} 47. Qa8+
{[%clk 0:00:47.7]} 47... Kb6 {[%clk 0:00:04.1]} 48. Qd8+ {[%clk 0:00:46.5]}
48... Ka6 {[%clk 0:00:03.8]} 49. Qa8+ {[%clk 0:00:45.4]} 49... Kb6 {[%clk
0:00:03.4]} 50. Qd8+ {[%clk 0:00:44.3]} 1/2-1/2

[Event "Live Chess"]
[Site "Chess.com"]
[Date "2023.05.21"]
[Round "-"]
[White "BJAW87"]
[Black "ms_lilley"]
[Result "1-0"]
[WhiteElo "1460"]
[BlackElo "603"]
[TimeControl "300"]
[EndTime "7:52:35 PDT"]
[Termination "BJAW87 won by checkmate"]

1. e4 {[%clk 0:04:58.8]} 1... e6 {[%clk 0:04:58.5]} 2. d4 {[%clk 0:04:57.7]}
2... d5 {[%clk 0:04:57.1]} 3. Nc3 {[%clk 0:04:55.1]} 3... a6 {[%clk 0:04:54.9]}
4. Nf3 {[%clk 0:04:50.9]} 4... h6 {[%clk 0:04:52.7]} 5. Bd3 {[%clk 0:04:48.4]}
5... b5 {[%clk 0:04:50.6]} 6. exd5 {[%clk 0:04:36]} 6... exd5 {[%clk 0:04:43.8]}
7. Ne5 {[%clk 0:04:25.3]} 7... Be6 {[%clk 0:04:30.7]} 8. O-O {[%clk 0:04:19.4]}
8... Nd7 {[%clk 0:04:12.4]} 9. f4 {[%clk 0:04:06.2]} 9... Nxe5 {[%clk
0:04:08.8]} 10. fxe5 {[%clk 0:04:06.1]} 10... Bb4 {[%clk 0:03:47]} 11. Qf3
{[%clk 0:04:03]} 11... f6 {[%clk 0:03:27.9]} 12. Bg6+ {[%clk 0:03:58]} 12... Kd7
{[%clk 0:03:18]} 13. Nxd5 {[%clk 0:03:37.4]} 13... Ne7 {[%clk 0:02:45.9]} 14.
Nf4 {[%clk 0:03:04.8]} 14... c6 {[%clk 0:02:30.9]} 15. Nxe6 {[%clk 0:02:54.7]}
15... Kxe6 {[%clk 0:02:18.9]} 16. Bf5+ {[%clk 0:02:51.9]} 16... Kf7 {[%clk
0:02:13.2]} 17. c3 {[%clk 0:02:50]} 17... Nxf5 {[%clk 0:01:56.6]} 18. Qxf5
{[%clk 0:02:41.2]} 18... Be7 {[%clk 0:01:51.3]} 19. e6+ {[%clk 0:02:37.9]} 19...
Kf8 {[%clk 0:01:43.3]} 20. b3 {[%clk 0:02:06]} 20... a5 {[%clk 0:01:34.7]} 21.
c4 {[%clk 0:02:04.8]} 21... Qxd4+ {[%clk 0:01:25.6]} 22. Kh1 {[%clk 0:01:51.5]}
22... Qxa1 {[%clk 0:01:13.1]} 23. cxb5 {[%clk 0:01:33.6]} 23... Qxa2 {[%clk
0:01:00.6]} 24. Qg6 {[%clk 0:01:30.9]} 24... Qxb3 {[%clk 0:00:54.9]} 25. Qf7#
{[%clk 0:01:29.1]} 1-0

[Event "Live Chess"]
[Site "Chess.com"]
[Date "2023.05.21"]
[Round "-"]
[White "manthanit"]
[Black "BillythekidFellowes"]
[Result "0-1"]
[WhiteElo "1100"]
[BlackElo "2114"]
[TimeControl "300"]
[EndTime "7:52:40 PDT"]
[Termination "BillythekidFellowes won by resignation"]

1. e4 {[%clk 0:04:58.5]} 1... e6 {[%clk 0:04:56.5]} 2. Nf3 {[%clk 0:04:57.4]}
2... d5 {[%clk 0:04:54.5]} 3. exd5 {[%clk 0:04:57]} 3... exd5 {[%clk 0:04:52.9]}
4. h3 {[%clk 0:04:55.2]} 4... Nf6 {[%clk 0:04:52.5]} 5. d4 {[%clk 0:04:45.9]}
5... Bd6 {[%clk 0:04:50.9]} 6. Nc3 {[%clk 0:04:44.2]} 6... O-O {[%clk
0:04:50.3]} 7. Be2 {[%clk 0:04:42.5]} 7... c6 {[%clk 0:04:48.2]} 8. Bg5 {[%clk
0:04:33]} 8... Nbd7 {[%clk 0:04:47.2]} 9. O-O {[%clk 0:04:26.6]} 9... Bb8 {[%clk
0:04:45.5]} 10. Bd3 {[%clk 0:04:21.4]} 10... Qc7 {[%clk 0:04:39.1]} 11. Ne2
{[%clk 0:04:16.7]} 11... Ne4 {[%clk 0:04:34]} 12. Bf4 {[%clk 0:04:06.6]} 12...
Qb6 {[%clk 0:04:31.9]} 13. Bxb8 {[%clk 0:04:05.1]} 13... Rxb8 {[%clk 0:04:30]}
14. Ng3 {[%clk 0:04:03.3]} 14... Nxg3 {[%clk 0:04:25.7]} 15. fxg3 {[%clk
0:04:02.1]} 15... Nf6 {[%clk 0:04:24.5]} 16. b3 {[%clk 0:03:55.4]} 16... Qc7
{[%clk 0:04:21.1]} 17. Qd2 {[%clk 0:03:48.4]} 17... Qxg3 {[%clk 0:04:19.7]} 18.
Qg5 {[%clk 0:03:34.2]} 18... Qxg5 {[%clk 0:04:16.7]} 19. Nxg5 {[%clk 0:03:33.1]}
19... h6 {[%clk 0:04:15.6]} 20. Nf3 {[%clk 0:03:31.3]} 20... Bd7 {[%clk
0:04:11.6]} 21. Rae1 {[%clk 0:03:29.8]} 21... Rbe8 {[%clk 0:04:10.5]} 22. c4
{[%clk 0:03:20.8]} 22... dxc4 {[%clk 0:04:01.9]} 23. Bxc4 {[%clk 0:03:19.6]}
23... Nd5 {[%clk 0:04:00.1]} 24. Ne5 {[%clk 0:03:11.7]} 24... Bc8 {[%clk
0:03:59]} 25. Kh2 {[%clk 0:02:32.6]} 25... g6 {[%clk 0:03:51.5]} 26. g3 {[%clk
0:02:29.6]} 26... Kg7 {[%clk 0:03:47.5]} 27. Rf3 {[%clk 0:02:20.3]} 27... f5
{[%clk 0:03:44.8]} 28. Ref1 {[%clk 0:02:11.6]} 28... Nf6 {[%clk 0:03:41.2]} 29.
Bf7 {[%clk 0:01:28.3]} 29... Rxf7 {[%clk 0:03:34.4]} 30. Nxf7 {[%clk 0:01:27.1]}
30... Kxf7 {[%clk 0:03:34.3]} 31. g4 {[%clk 0:01:24.4]} 31... Re2+ {[%clk
0:03:32.7]} 32. Kg3 {[%clk 0:01:22.9]} 32... Ne4+ {[%clk 0:03:26.4]} 33. Kh4
{[%clk 0:01:15.4]} 33... Nd2 {[%clk 0:03:17.9]} 34. Rxf5+ {[%clk 0:01:04.3]}
34... gxf5 {[%clk 0:03:15.8]} 35. Rxf5+ {[%clk 0:01:03.9]} 35... Bxf5 {[%clk
0:03:14.8]} 36. gxf5 {[%clk 0:01:03.5]} 36... Kf6 {[%clk 0:03:13.9]} 0-1

[Event "Live Chess"]
[Site "Chess.com"]
[Date "2023.05.21"]
[Round "-"]
[White "TheSmoulderingMaster"]
[Black "Biranidun"]
[Result "0-1"]
[WhiteElo "1660"]
[BlackElo "2519"]
[TimeControl "300"]
[EndTime "7:52:43 PDT"]
[Termination "Biranidun won by resignation"]

1. e4 {[%clk 0:04:58.6]} 1... c5 {[%clk 0:04:58.9]} 2. Nf3 {[%clk 0:04:54.5]}
2... d6 {[%clk 0:04:57.8]} 3. d4 {[%clk 0:04:53.7]} 3... cxd4 {[%clk 0:04:56.7]}
4. Nxd4 {[%clk 0:04:53.1]} 4... Nf6 {[%clk 0:04:56.3]} 5. Nc3 {[%clk 0:04:52.4]}
5... g6 {[%clk 0:04:55.9]} 6. Be3 {[%clk 0:04:51.3]} 6... Bg7 {[%clk 0:04:55.4]}
7. f3 {[%clk 0:04:50.7]} 7... Nc6 {[%clk 0:04:54.8]} 8. Qd2 {[%clk 0:04:49.6]}
8... O-O {[%clk 0:04:54.3]} 9. Bc4 {[%clk 0:04:45.9]} 9... Bd7 {[%clk
0:04:51.1]} 10. O-O-O {[%clk 0:04:43.7]} 10... Rb8 {[%clk 0:04:50.7]} 11. g4
{[%clk 0:04:40.7]} 11... b5 {[%clk 0:04:49]} 12. Bb3 {[%clk 0:04:38.9]} 12...
Na5 {[%clk 0:04:47.6]} 13. h4 {[%clk 0:04:36.4]} 13... Nc4 {[%clk 0:04:46.4]}
14. Bxc4 {[%clk 0:04:34.3]} 14... bxc4 {[%clk 0:04:46.3]} 15. h5 {[%clk
0:04:31.2]} 15... Qb6 {[%clk 0:04:45.4]} 16. b3 {[%clk 0:04:28.2]} 16... Qa5
{[%clk 0:04:43.3]} 17. Kb1 {[%clk 0:04:25.5]} 17... Rfc8 {[%clk 0:04:40.6]} 18.
hxg6 {[%clk 0:04:23.5]} 18... cxb3 {[%clk 0:04:37.3]} 19. gxf7+ {[%clk
0:04:21.3]} 19... Kxf7 {[%clk 0:04:36]} 20. cxb3 {[%clk 0:04:20.6]} 20... Qxc3
{[%clk 0:04:34.2]} 21. Qxc3 {[%clk 0:04:19.1]} 21... Rxc3 {[%clk 0:04:34.1]} 22.
g5 {[%clk 0:04:15.1]} 22... Rxe3 {[%clk 0:04:30.9]} 23. gxf6 {[%clk 0:04:14]}
23... Bxf6 {[%clk 0:04:29]} 24. Rxh7+ {[%clk 0:04:11.4]} 24... Kg6 {[%clk
0:04:23.4]} 25. Rdh1 {[%clk 0:04:08.6]} 25... Re1+ {[%clk 0:04:21.2]} 26. Rxe1
{[%clk 0:04:06]} 26... Kxh7 {[%clk 0:04:20.3]} 27. Rg1 {[%clk 0:04:03.4]} 27...
Bxd4 {[%clk 0:04:19]} 0-1

[Event "Live Chess"]
[Site "Chess.com"]
[Date "2023.05.21"]
[Round "-"]
[White "garyjc"]
[Black "Doge_Dandolo"]
[Result "1-0"]
[WhiteElo "1081"]
[BlackElo "1856"]
[TimeControl "300"]
[EndTime "7:52:46 PDT"]
[Termination "garyjc won by checkmate"]

1. e4 {[%clk 0:04:57.5]} 1... c6 {[%clk 0:04:58.6]} 2. d4 {[%clk 0:04:55.5]}
2... d5 {[%clk 0:04:57.8]} 3. Nc3 {[%clk 0:04:54.6]} 3... dxe4 {[%clk
0:04:56.9]} 4. Nxe4 {[%clk 0:04:53.4]} 4... Bf5 {[%clk 0:04:56.1]} 5. Ng3 {[%clk
0:04:52.3]} 5... Bg6 {[%clk 0:04:55.3]} 6. h4 {[%clk 0:04:51.4]} 6... h6 {[%clk
0:04:54.3]} 7. Nf3 {[%clk 0:04:47.7]} 7... Nd7 {[%clk 0:04:52.8]} 8. Bd3 {[%clk
0:04:40.8]} 8... Bxd3 {[%clk 0:04:50.1]} 9. Qxd3 {[%clk 0:04:39.5]} 9... e6
{[%clk 0:04:49.5]} 10. Be3 {[%clk 0:04:29.3]} 10... Ngf6 {[%clk 0:04:48.6]} 11.
O-O-O {[%clk 0:04:16.8]} 11... Be7 {[%clk 0:04:47.1]} 12. Ne4 {[%clk 0:04:02.1]}
12... Nxe4 {[%clk 0:04:44.7]} 13. Qxe4 {[%clk 0:03:59.4]} 13... Nf6 {[%clk
0:04:43.9]} 14. Qd3 {[%clk 0:03:57.2]} 14... Qa5 {[%clk 0:04:37.4]} 15. Kb1
{[%clk 0:03:53.1]} 15... O-O {[%clk 0:04:35.1]} 16. Rdg1 {[%clk 0:03:30.4]}
16... Rfd8 {[%clk 0:04:31.8]} 17. g4 {[%clk 0:03:28]} 17... c5 {[%clk
0:04:29.1]} 18. g5 {[%clk 0:03:25.4]} 18... cxd4 {[%clk 0:04:27.4]} 19. Nxd4
{[%clk 0:03:13.5]} 19... Nd5 {[%clk 0:04:24]} 20. gxh6 {[%clk 0:03:04.2]} 20...
Nxe3 {[%clk 0:04:22.6]} 21. Rxg7+ {[%clk 0:02:54.9]} 21... Kf8 {[%clk
0:04:20.6]} 22. Qh7 {[%clk 0:02:48]} 22... Nd5 {[%clk 0:04:04.7]} 23. Qh8#
{[%clk 0:02:42.5]} 1-0

[Event "Live Chess"]
[Site "Chess.com"]
[Date "2023.05.21"]
[Round "-"]
[White "Olisingapore"]
[Black "lHolyDiverl"]
[Result "1-0"]
[WhiteElo "1785"]
[BlackElo "555"]
[TimeControl "300"]
[EndTime "7:52:58 PDT"]
[Termination "Olisingapore won on time"]

1. d4 {[%clk 0:04:54.2]} 1... d5 {[%clk 0:04:56.3]} 2. c4 {[%clk 0:04:52.7]}
2... Nf6 {[%clk 0:04:45]} 3. Nf3 {[%clk 0:04:51.9]} 3... Bg4 {[%clk 0:04:22.4]}
4. cxd5 {[%clk 0:04:47.1]} 4... Nxd5 {[%clk 0:04:13.8]} 5. e4 {[%clk 0:04:45.7]}
5... Bxf3 {[%clk 0:04:03.1]} 6. Qxf3 {[%clk 0:04:44.2]} 6... Nb6 {[%clk
0:03:57.9]} 7. Nc3 {[%clk 0:04:39.7]} 7... Qxd4 {[%clk 0:03:53.5]} 8. Be3 {[%clk
0:04:35.6]} 8... Qb4 {[%clk 0:03:45.7]} 9. Be2 {[%clk 0:04:25.8]} 9... Qxb2
{[%clk 0:03:39.3]} 10. Bxb6 {[%clk 0:04:18.9]} 10... Qxa1+ {[%clk 0:03:29.7]}
11. Nd1 {[%clk 0:04:13]} 11... axb6 {[%clk 0:03:13]} 12. Qf5 {[%clk 0:04:05.5]}
12... e6 {[%clk 0:02:59.9]} 13. Qb5+ {[%clk 0:03:45.8]} 13... Nc6 {[%clk
0:02:42.8]} 14. O-O {[%clk 0:03:42.4]} 14... Qe5 {[%clk 0:02:21.8]} 15. Qxe5
{[%clk 0:03:34.1]} 15... Nxe5 {[%clk 0:02:20.6]} 16. Nc3 {[%clk 0:03:29.9]}
16... c6 {[%clk 0:02:06.2]} 17. a4 {[%clk 0:03:21.7]} 17... Be7 {[%clk
0:01:53.1]} 18. Rb1 {[%clk 0:03:10.4]} 18... O-O {[%clk 0:01:40.4]} 19. Rxb6
{[%clk 0:03:00.4]} 19... Rfd8 {[%clk 0:01:29.8]} 20. Rxb7 {[%clk 0:02:53.3]}
20... Bf6 {[%clk 0:01:13.9]} 21. Rb1 {[%clk 0:02:36.6]} 21... Rab8 {[%clk
0:01:06.2]} 22. Ra1 {[%clk 0:02:33.7]} 22... Nc4 {[%clk 0:00:54.3]} 23. Rc1
{[%clk 0:02:29]} 23... Rb2 {[%clk 0:00:39.9]} 24. Bxc4 {[%clk 0:02:16.9]} 24...
Bxc3 {[%clk 0:00:32.5]} 25. Rxc3 {[%clk 0:02:12]} 25... Rb1+ {[%clk 0:00:29.6]}
26. Bf1 {[%clk 0:02:11.1]} 26... h6 {[%clk 0:00:22.3]} 27. a5 {[%clk 0:02:09]}
27... Rdd1 {[%clk 0:00:19.3]} 28. g3 {[%clk 0:02:05]} 28... Rxf1+ {[%clk
0:00:17.5]} 29. Kg2 {[%clk 0:02:04.6]} 29... Rg1+ {[%clk 0:00:13.4]} 30. Kh3
{[%clk 0:02:03.4]} 30... Ra1 {[%clk 0:00:11.4]} 31. Rxc6 {[%clk 0:02:01.1]}
31... Rxa5 {[%clk 0:00:10]} 32. Rc8+ {[%clk 0:02:00.6]} 32... Kh7 {[%clk
0:00:08.4]} 33. g4 {[%clk 0:01:50.5]} 33... h5 {[%clk 0:00:04]} 34. f3 {[%clk
0:01:36.1]} 34... hxg4+ {[%clk 0:00:02.1]} 35. fxg4 {[%clk 0:01:33.1]} 35... f5
{[%clk 0:00:00.9]} 36. exf5 {[%clk 0:01:30.7]} 1-0

[Event "Live Chess"]
[Site "Chess.com"]
[Date "2023.05.21"]
[Round "-"]
[White "stevochess11"]
[Black "Daniel_Gliddon_FA"]
[Result "1-0"]
[WhiteElo "1667"]
[BlackElo "1227"]
[TimeControl "300"]
[EndTime "7:53:22 PDT"]
[Termination "stevochess11 won by resignation"]

1. d4 {[%clk 0:04:58.9]} 1... Nf6 {[%clk 0:04:53]} 2. Nf3 {[%clk 0:04:58]} 2...
g6 {[%clk 0:04:49.7]} 3. Nc3 {[%clk 0:04:56.4]} 3... Bg7 {[%clk 0:04:47.6]} 4.
e4 {[%clk 0:04:55.5]} 4... O-O {[%clk 0:04:45.9]} 5. Be3 {[%clk 0:04:50.3]} 5...
d6 {[%clk 0:04:43.1]} 6. Qd2 {[%clk 0:04:47.9]} 6... Re8 {[%clk 0:04:40.3]} 7.
O-O-O {[%clk 0:04:45.2]} 7... e5 {[%clk 0:04:38.2]} 8. dxe5 {[%clk 0:04:43.9]}
8... Nfd7 {[%clk 0:04:28.4]} 9. exd6 {[%clk 0:04:36.8]} 9... Bxc3 {[%clk
0:04:25.4]} 10. Qxc3 {[%clk 0:04:28.9]} 10... cxd6 {[%clk 0:04:23.7]} 11. Bh6
{[%clk 0:04:21.9]} 11... Nf6 {[%clk 0:04:17]} 12. e5 {[%clk 0:04:17.8]} 12...
Rxe5 {[%clk 0:04:11.5]} 13. Qxe5 {[%clk 0:04:12.6]} 1-0

[Event "Live Chess"]
[Site "Chess.com"]
[Date "2023.05.21"]
[Round "-"]
[White "Missedidea"]
[Black "terrub10"]
[Result "1-0"]
[WhiteElo "1770"]
[BlackElo "570"]
[TimeControl "300"]
[EndTime "7:53:29 PDT"]
[Termination "Missedidea won by checkmate"]

1. d4 {[%clk 0:04:58.5]} 1... d5 {[%clk 0:04:56.9]} 2. c4 {[%clk 0:04:57.5]}
2... dxc4 {[%clk 0:04:51.8]} 3. e3 {[%clk 0:04:55.9]} 3... Nf6 {[%clk
0:04:36.6]} 4. Bxc4 {[%clk 0:04:54.2]} 4... Bg4 {[%clk 0:04:31.7]} 5. f3 {[%clk
0:04:51.9]} 5... Bh5 {[%clk 0:04:24.1]} 6. Ne2 {[%clk 0:04:49.8]} 6... Nc6
{[%clk 0:04:19.9]} 7. O-O {[%clk 0:04:47.4]} 7... e5 {[%clk 0:04:18]} 8. Nbc3
{[%clk 0:04:42.7]} 8... exd4 {[%clk 0:04:16.4]} 9. exd4 {[%clk 0:04:40.5]} 9...
Bb4 {[%clk 0:03:30.7]} 10. Bg5 {[%clk 0:04:23.9]} 10... Bxc3 {[%clk 0:03:22]}
11. bxc3 {[%clk 0:04:21.4]} 11... Nb4 {[%clk 0:03:07.7]} 12. cxb4 {[%clk
0:04:16.1]} 12... O-O {[%clk 0:02:58.5]} 13. Nf4 {[%clk 0:04:13.1]} 13... h6
{[%clk 0:02:45.9]} 14. Bxf6 {[%clk 0:03:50.5]} 14... gxf6 {[%clk 0:02:42.8]} 15.
Nxh5 {[%clk 0:03:46.8]} 15... Qd7 {[%clk 0:02:28.1]} 16. Qd3 {[%clk 0:03:40.3]}
16... Rfd8 {[%clk 0:02:25.5]} 17. Nxf6+ {[%clk 0:03:37.7]} 17... Kg7 {[%clk
0:02:20.1]} 18. Nxd7 {[%clk 0:03:35.8]} 18... Rxd7 {[%clk 0:02:18.5]} 19. Qf5
{[%clk 0:03:33.1]} 19... Rad8 {[%clk 0:02:13.3]} 20. Rad1 {[%clk 0:03:30.6]}
20... Rxd4 {[%clk 0:02:05.9]} 21. Rxd4 {[%clk 0:03:28.6]} 21... Rxd4 {[%clk
0:02:03.8]} 22. Qe5+ {[%clk 0:03:27.6]} 22... f6 {[%clk 0:01:59.4]} 23. Qxd4
{[%clk 0:03:26.6]} 23... b6 {[%clk 0:01:56.7]} 24. Qd7+ {[%clk 0:03:23.8]} 24...
Kg6 {[%clk 0:01:54.9]} 25. g4 {[%clk 0:03:18.5]} 25... c5 {[%clk 0:01:48.7]} 26.
h4 {[%clk 0:03:15.4]} 26... h5 {[%clk 0:01:44.2]} 27. Qf7+ {[%clk 0:03:12.5]}
27... Kh6 {[%clk 0:01:40.8]} 28. Bd3 {[%clk 0:03:08.4]} 28... hxg4 {[%clk
0:01:34.5]} 29. Qg6# {[%clk 0:03:06.6]} 1-0